[Event "Late-Titled-Tuesday-Blitz-March-05-2024"]
[Site "Chess.com"]
[Date "2024.03.05"]
[Round "3"]
[White "PNEPaul"]
[Black "Arlo2024"]
[Result "0-1"]
[WhiteElo "1929"]
[BlackElo "2296"]
[TimeControl "180+1"]
[EndTime "14:26:46 PST"]
[Termination "Arlo2024 won by resignation"]

1. e4 {[%clk 0:02:42.9]} 1... e6 {[%clk 0:03:00.3]} 2. d4 {[%clk 0:02:41.9]}
2... d5 {[%clk 0:03:01.1]} 3. e5 {[%clk 0:02:41.5]} 3... c5 {[%clk 0:03:00.7]}
4. Qg4 {[%clk 0:02:40.7]} 4... cxd4 {[%clk 0:02:58.5]} 5. Nf3 {[%clk 0:02:40.7]}
5... Nc6 {[%clk 0:02:56.9]} 6. Bd3 {[%clk 0:02:40.6]} 6... Nb4 {[%clk
0:02:55.8]} 7. O-O {[%clk 0:02:37.7]} 7... Nxd3 {[%clk 0:02:55.5]} 8. cxd3
{[%clk 0:02:37.7]} 8... Ne7 {[%clk 0:02:55.9]} 9. Qxd4 {[%clk 0:02:36.4]} 9...
Nc6 {[%clk 0:02:55.3]} 10. Qf4 {[%clk 0:02:35.8]} 10... Be7 {[%clk 0:02:53.3]}
11. Qg3 {[%clk 0:02:33.8]} 11... Bf8 {[%clk 0:02:47.4]} 12. d4 {[%clk
0:02:32.7]} 12... Ne7 {[%clk 0:02:47.7]} 13. Nc3 {[%clk 0:02:29.8]} 13... Nf5
{[%clk 0:02:33.8]} 14. Qf4 {[%clk 0:02:29.7]} 14... h5 {[%clk 0:02:25.7]} 15.
Qd2 {[%clk 0:02:27]} 15... Be7 {[%clk 0:02:22.1]} 16. h3 {[%clk 0:02:23.8]}
16... Bd7 {[%clk 0:02:21.3]} 17. a3 {[%clk 0:02:21.6]} 17... Rc8 {[%clk
0:02:11.9]} 18. Qd1 {[%clk 0:02:20.8]} 18... Qb6 {[%clk 0:02:07.9]} 19. Bd2
{[%clk 0:02:11.2]} 19... Nxd4 {[%clk 0:02:03.6]} 20. Nxd4 {[%clk 0:02:09.5]}
20... Qxd4 {[%clk 0:02:03.5]} 21. Re1 {[%clk 0:02:03.3]} 21... Qb6 {[%clk
0:01:54.8]} 22. b4 {[%clk 0:01:59.5]} 22... h4 {[%clk 0:01:49.9]} 23. Qg4 {[%clk
0:01:54.8]} 23... g6 {[%clk 0:01:45.1]} 24. Rac1 {[%clk 0:01:46.7]} 24... Rc4
{[%clk 0:01:44.2]} 25. Qf3 {[%clk 0:01:34.7]} 25... O-O {[%clk 0:01:38.7]} 26.
Bh6 {[%clk 0:01:29.2]} 26... Rfc8 {[%clk 0:01:36.8]} 27. Ne2 {[%clk 0:01:17.2]}
27... Rxc1 {[%clk 0:01:27.4]} 28. Rxc1 {[%clk 0:01:16.4]} 28... Rxc1+ {[%clk
0:01:27.8]} 29. Nxc1 {[%clk 0:01:16.2]} 29... Qd4 {[%clk 0:01:26.1]} 30. Bf4
{[%clk 0:01:02.7]} 30... a5 {[%clk 0:01:10.2]} 31. Ne2 {[%clk 0:00:58.3]} 31...
Qd1+ {[%clk 0:01:03.4]} 32. Kh2 {[%clk 0:00:56.8]} 32... axb4 {[%clk 0:01:03.6]}
33. axb4 {[%clk 0:00:55.8]} 33... Bxb4 {[%clk 0:00:58.9]} 34. Qg4 {[%clk
0:00:52.2]} 34... Be7 {[%clk 0:00:55.5]} 35. f3 {[%clk 0:00:45.4]} 35... Qxe2
{[%clk 0:00:52.5]} 0-1

[Event "Late-Titled-Tuesday-Blitz-March-05-2024"]
[Site "Chess.com"]
[Date "2024.03.05"]
[Round "3"]
[White "Mr_Heisenberg13"]
[Black "RantomOpening"]
[Result "1-0"]
[WhiteElo "2822"]
[BlackElo "2581"]
[TimeControl "180+1"]
[EndTime "14:27:01 PST"]
[Termination "Mr_Heisenberg13 won by resignation"]

1. e4 {[%clk 0:03:00.9]} 1... c5 {[%clk 0:02:59.2]} 2. Nf3 {[%clk 0:03:00.3]}
2... e6 {[%clk 0:02:59.7]} 3. d4 {[%clk 0:02:59.7]} 3... cxd4 {[%clk 0:03:00.6]}
4. Bg5 {[%clk 0:02:59.8]} 4... Nf6 {[%clk 0:03:01.3]} 5. Qxd4 {[%clk 0:02:59.2]}
5... Nc6 {[%clk 0:03:00.7]} 6. Qe3 {[%clk 0:02:59.2]} 6... Be7 {[%clk
0:02:57.5]} 7. Nc3 {[%clk 0:02:56.4]} 7... d5 {[%clk 0:02:54.5]} 8. O-O-O {[%clk
0:02:53.3]} 8... O-O {[%clk 0:02:22.1]} 9. exd5 {[%clk 0:02:51.5]} 9... exd5
{[%clk 0:02:16.6]} 10. Bxf6 {[%clk 0:02:50.1]} 10... Bxf6 {[%clk 0:02:15.5]} 11.
Nxd5 {[%clk 0:02:50.4]} 11... Be6 {[%clk 0:02:14.8]} 12. Bc4 {[%clk 0:02:40.7]}
12... Bxd5 {[%clk 0:01:58.5]} 13. Rxd5 {[%clk 0:02:41.6]} 13... Qc7 {[%clk
0:01:57.5]} 14. Bb3 {[%clk 0:02:39.9]} 14... Rac8 {[%clk 0:01:50.2]} 15. Rhd1
{[%clk 0:02:35.6]} 15... Rfe8 {[%clk 0:01:41.3]} 16. Qd2 {[%clk 0:02:22.7]}
16... Red8 {[%clk 0:01:17.5]} 17. Rd7 {[%clk 0:02:16.7]} 17... Rxd7 {[%clk
0:01:16.8]} 18. Qxd7 {[%clk 0:02:16.9]} 18... Qf4+ {[%clk 0:00:59.4]} 19. Kb1
{[%clk 0:02:16.4]} 19... Rf8 {[%clk 0:00:56.3]} 20. Re1 {[%clk 0:02:10.6]} 20...
h6 {[%clk 0:00:34.3]} 21. Bxf7+ {[%clk 0:02:05.1]} 21... Kh8 {[%clk 0:00:17.5]}
22. Bb3 {[%clk 0:02:03.2]} 22... Ne5 {[%clk 0:00:15.3]} 23. Nxe5 {[%clk
0:01:59.6]} 23... Bxe5 {[%clk 0:00:16.2]} 24. a3 {[%clk 0:01:34.4]} 24... Bf6
{[%clk 0:00:12.6]} 25. Re8 {[%clk 0:01:28.8]} 25... Be5 {[%clk 0:00:03.7]} 26.
Rxf8+ {[%clk 0:01:13.1]} 26... Qxf8 {[%clk 0:00:04.6]} 27. Qxb7 {[%clk
0:01:11.9]} 27... Qxf2 {[%clk 0:00:04.4]} 28. Qa8+ {[%clk 0:01:07.4]} 28... Kh7
{[%clk 0:00:04.9]} 29. Qe4+ {[%clk 0:01:07.8]} 29... Qf5 {[%clk 0:00:05.8]} 30.
Qxf5+ {[%clk 0:01:07.4]} 1-0

[Event "Late-Titled-Tuesday-Blitz-March-05-2024"]
[Site "Chess.com"]
[Date "2024.03.05"]
[Round "3"]
[White "Gambito_SE"]
[Black "BeanScreen"]
[Result "0-1"]
[WhiteElo "2506"]
[BlackElo "2728"]
[TimeControl "180+1"]
[EndTime "14:27:03 PST"]
[Termination "BeanScreen won by resignation"]

1. e4 {[%clk 0:03:00.9]} 1... e5 {[%clk 0:03:00]} 2. Nf3 {[%clk 0:03:00.7]} 2...
Nc6 {[%clk 0:03:00.2]} 3. Bc4 {[%clk 0:03:00.9]} 3... Nf6 {[%clk 0:02:59.9]} 4.
d3 {[%clk 0:03:00.8]} 4... Be7 {[%clk 0:02:59.4]} 5. O-O {[%clk 0:03:00.4]} 5...
O-O {[%clk 0:02:59.4]} 6. Nc3 {[%clk 0:03:01]} 6... d6 {[%clk 0:02:59.4]} 7. a4
{[%clk 0:03:00.5]} 7... Bg4 {[%clk 0:02:56.3]} 8. Be3 {[%clk 0:02:57.5]} 8...
Nd4 {[%clk 0:02:38.6]} 9. Bxd4 {[%clk 0:02:54.2]} 9... exd4 {[%clk 0:02:39.5]}
10. Nd5 {[%clk 0:02:53.9]} 10... Nxd5 {[%clk 0:02:38]} 11. Bxd5 {[%clk
0:02:54.8]} 11... c6 {[%clk 0:02:37.4]} 12. Bb3 {[%clk 0:02:46.6]} 12... Bf6
{[%clk 0:02:36.3]} 13. h3 {[%clk 0:02:46.4]} 13... Bxf3 {[%clk 0:02:36]} 14.
Qxf3 {[%clk 0:02:45.9]} 14... Qe7 {[%clk 0:02:28.1]} 15. a5 {[%clk 0:02:44.3]}
15... Qc7 {[%clk 0:02:22.5]} 16. a6 {[%clk 0:02:41.9]} 16... b5 {[%clk
0:02:21.7]} 17. Qf5 {[%clk 0:02:39.1]} 17... Qe7 {[%clk 0:02:12.6]} 18. g3
{[%clk 0:02:38.6]} 18... g6 {[%clk 0:02:10.8]} 19. Qg4 {[%clk 0:02:37.9]} 19...
Rac8 {[%clk 0:02:01.3]} 20. h4 {[%clk 0:02:35.3]} 20... c5 {[%clk 0:01:57.5]}
21. Bd5 {[%clk 0:02:34.7]} 21... c4 {[%clk 0:01:57.3]} 22. h5 {[%clk 0:02:08.7]}
22... Kg7 {[%clk 0:01:53.9]} 23. dxc4 {[%clk 0:02:02]} 23... bxc4 {[%clk
0:01:52.8]} 24. Kg2 {[%clk 0:02:02.1]} 24... d3 {[%clk 0:01:40.9]} 25. c3 {[%clk
0:02:00.2]} 25... Rb8 {[%clk 0:01:34.2]} 26. Rh1 {[%clk 0:01:45.7]} 26... Rxb2
{[%clk 0:01:18.5]} 27. hxg6 {[%clk 0:01:43.9]} 27... fxg6 {[%clk 0:01:19.4]} 28.
Qh3 {[%clk 0:01:28.8]} 28... h5 {[%clk 0:00:26.6]} 29. g4 {[%clk 0:01:27.3]}
29... h4 {[%clk 0:00:22.7]} 30. Ra4 {[%clk 0:01:21.7]} 30... Bxc3 {[%clk
0:00:20.4]} 31. Rxc4 {[%clk 0:01:21.3]} 31... Rfxf2+ {[%clk 0:00:14.5]} 32. Kg1
{[%clk 0:01:21.6]} 32... Rfc2 {[%clk 0:00:10.1]} 0-1

[Event "Late-Titled-Tuesday-Blitz-March-05-2024"]
[Site "Chess.com"]
[Date "2024.03.05"]
[Round "3"]
[White "Fjal"]
[Black "SmirnovTimofey2000"]
[Result "1-0"]
[WhiteElo "2304"]
[BlackElo "1971"]
[TimeControl "180+1"]
[EndTime "14:27:12 PST"]
[Termination "Fjal won on time"]

1. Nf3 {[%clk 0:02:51.3]} 1... Nf6 {[%clk 0:02:59.6]} 2. g4 {[%clk 0:02:51.1]}
2... Nxg4 {[%clk 0:02:46.4]} 3. Rg1 {[%clk 0:02:51.2]} 3... Nf6 {[%clk
0:02:44.5]} 4. d4 {[%clk 0:02:51.6]} 4... d5 {[%clk 0:02:37.7]} 5. c4 {[%clk
0:02:51.4]} 5... c6 {[%clk 0:02:32.6]} 6. Nc3 {[%clk 0:02:51.7]} 6... Bg4 {[%clk
0:02:09.3]} 7. Ne5 {[%clk 0:02:45.8]} 7... Qc8 {[%clk 0:01:58.7]} 8. Bg5 {[%clk
0:02:38]} 8... Bf5 {[%clk 0:01:50.8]} 9. cxd5 {[%clk 0:02:31.4]} 9... Nxd5
{[%clk 0:01:41.1]} 10. Nxd5 {[%clk 0:02:28.4]} 10... cxd5 {[%clk 0:01:40.4]} 11.
Rc1 {[%clk 0:02:27.4]} 11... Nc6 {[%clk 0:01:34.6]} 12. Qa4 {[%clk 0:02:24.7]}
12... Bd7 {[%clk 0:01:20.2]} 13. Nxd7 {[%clk 0:02:24.2]} 13... Qxd7 {[%clk
0:01:20.2]} 14. e3 {[%clk 0:02:23.8]} 14... e6 {[%clk 0:01:15]} 15. Bf4 {[%clk
0:02:18.8]} 15... Rc8 {[%clk 0:01:05.6]} 16. h4 {[%clk 0:02:15.1]} 16... g6
{[%clk 0:00:58.8]} 17. Be5 {[%clk 0:02:13.2]} 17... Rg8 {[%clk 0:00:40.2]} 18.
h5 {[%clk 0:02:13]} 18... Bd6 {[%clk 0:00:31.4]} 19. Bf6 {[%clk 0:02:08.6]}
19... Be7 {[%clk 0:00:31.6]} 20. Be5 {[%clk 0:02:08.1]} 20... Bd6 {[%clk
0:00:29.1]} 21. f4 {[%clk 0:01:54.8]} 21... Bxe5 {[%clk 0:00:28.2]} 22. fxe5
{[%clk 0:01:55.7]} 22... a6 {[%clk 0:00:24.4]} 23. h6 {[%clk 0:01:51.9]} 23...
Kd8 {[%clk 0:00:18.8]} 24. Rg2 {[%clk 0:01:48.5]} 24... Nxe5 {[%clk 0:00:14]}
25. Qa5+ {[%clk 0:01:43.6]} 25... Ke8 {[%clk 0:00:05.2]} 26. Rxc8+ {[%clk
0:01:43.1]} 26... Qxc8 {[%clk 0:00:03.8]} 27. dxe5 {[%clk 0:01:43.1]} 27... Qc1+
{[%clk 0:00:03.2]} 28. Kf2 {[%clk 0:01:43.7]} 28... Qd2+ {[%clk 0:00:01]} 29.
Be2 {[%clk 0:01:44.2]} 29... Qxa5 {[%clk 0:00:01.1]} 30. Rg1 {[%clk 0:01:43.2]}
30... Qxa2 {[%clk 0:00:01.8]} 31. Rc1 {[%clk 0:01:43.4]} 31... Kd7 {[%clk
0:00:02.5]} 32. Rc2 {[%clk 0:01:43.2]} 32... Rc8 {[%clk 0:00:02.9]} 33. Rd2
{[%clk 0:01:43]} 33... Qb3 {[%clk 0:00:02.4]} 34. Bd3 {[%clk 0:01:42.9]} 34...
Rc2 {[%clk 0:00:02]} 35. Bxc2 {[%clk 0:01:42.5]} 35... Qxb2 {[%clk 0:00:02.1]}
36. Ke2 {[%clk 0:01:43.1]} 36... a5 {[%clk 0:00:01.8]} 37. Bxg6 {[%clk
0:01:41.1]} 37... Qb5+ {[%clk 0:00:02]} 38. Bd3 {[%clk 0:01:40.4]} 38... Qb6
{[%clk 0:00:02.4]} 39. Bxh7 {[%clk 0:01:40.8]} 39... a4 {[%clk 0:00:02.2]} 40.
Bd3 {[%clk 0:01:39.2]} 40... a3 {[%clk 0:00:02.4]} 41. h7 {[%clk 0:01:39.6]}
41... Qd8 {[%clk 0:00:01.9]} 42. Ra2 {[%clk 0:01:39.1]} 42... Qh8 {[%clk
0:00:01.7]} 43. Rxa3 {[%clk 0:01:39.6]} 43... b6 {[%clk 0:00:01.7]} 44. Ra1
{[%clk 0:01:36.2]} 44... Kc6 {[%clk 0:00:01.8]} 45. Rg1 {[%clk 0:01:36.9]} 1-0

[Event "Late-Titled-Tuesday-Blitz-March-05-2024"]
[Site "Chess.com"]
[Date "2024.03.05"]
[Round "3"]
[White "Polish_fighter3000"]
[Black "Kiborg95"]
[Result "1-0"]
[WhiteElo "3108"]
[BlackElo "2786"]
[TimeControl "180+1"]
[EndTime "14:27:16 PST"]
[Termination "Polish_fighter3000 won by resignation"]

1. e4 {[%clk 0:03:00.9]} 1... d6 {[%clk 0:01:31.1]} 2. d4 {[%clk 0:02:49]} 2...
Nf6 {[%clk 0:01:30.5]} 3. Nc3 {[%clk 0:02:46]} 3... e5 {[%clk 0:01:31]} 4. dxe5
{[%clk 0:02:40.4]} 4... dxe5 {[%clk 0:01:31.9]} 5. Qxd8+ {[%clk 0:02:40.5]} 5...
Kxd8 {[%clk 0:01:32.8]} 6. Bc4 {[%clk 0:02:40.7]} 6... Ke8 {[%clk 0:01:33.2]} 7.
Nf3 {[%clk 0:02:38.8]} 7... Bd6 {[%clk 0:01:32.6]} 8. Be3 {[%clk 0:02:32.6]}
8... a6 {[%clk 0:01:32.9]} 9. O-O-O {[%clk 0:02:25.2]} 9... h6 {[%clk
0:01:33.2]} 10. h3 {[%clk 0:02:21.3]} 10... b5 {[%clk 0:01:27.8]} 11. Bd5 {[%clk
0:02:14.1]} 11... Nxd5 {[%clk 0:01:26.1]} 12. Nxd5 {[%clk 0:02:15]} 12... Nd7
{[%clk 0:01:16.9]} 13. c4 {[%clk 0:02:10.3]} 13... Bb7 {[%clk 0:01:14.7]} 14. c5
{[%clk 0:02:00.2]} 14... Bxd5 {[%clk 0:01:11.1]} 15. Rxd5 {[%clk 0:01:59.1]}
15... Be7 {[%clk 0:01:11.2]} 16. c6 {[%clk 0:01:44.5]} 16... Nf6 {[%clk
0:01:11.6]} 17. Rxe5 {[%clk 0:01:44.3]} 17... Kf8 {[%clk 0:01:12.4]} 18. Nd2
{[%clk 0:01:03.2]} 18... Rd8 {[%clk 0:01:11.6]} 19. a4 {[%clk 0:01:02.1]} 19...
bxa4 {[%clk 0:01:01]} 20. Ra5 {[%clk 0:01:00.6]} 20... Bb4 {[%clk 0:00:13.9]}
21. Rxa4 {[%clk 0:00:51.4]} 21... a5 {[%clk 0:00:14.1]} 22. Nc4 {[%clk
0:00:40.6]} 22... Nxe4 {[%clk 0:00:13.7]} 23. Nxa5 {[%clk 0:00:40.5]} 23... Bxa5
{[%clk 0:00:14.3]} 24. Rxe4 {[%clk 0:00:33.5]} 24... f6 {[%clk 0:00:14.8]} 25.
b4 {[%clk 0:00:33.1]} 25... Bb6 {[%clk 0:00:13.8]} 26. Bxb6 {[%clk 0:00:32.8]}
26... cxb6 {[%clk 0:00:14.7]} 27. Rd1 {[%clk 0:00:32.5]} 1-0

[Event "Late-Titled-Tuesday-Blitz-March-05-2024"]
[Site "Chess.com"]
[Date "2024.03.05"]
[Round "3"]
[White "SEBAZZANO"]
[Black "stregachess"]
[Result "1-0"]
[WhiteElo "2318"]
[BlackElo "2013"]
[TimeControl "180+1"]
[EndTime "14:27:20 PST"]
[Termination "SEBAZZANO won by resignation"]

1. d4 {[%clk 0:03:00.9]} 1... Nf6 {[%clk 0:02:59.1]} 2. Bf4 {[%clk 0:02:59.4]}
2... d5 {[%clk 0:02:58.6]} 3. e3 {[%clk 0:02:57.5]} 3... e6 {[%clk 0:02:58.9]}
4. c3 {[%clk 0:02:56.6]} 4... Bd6 {[%clk 0:02:59.1]} 5. Bg3 {[%clk 0:02:56]}
5... c6 {[%clk 0:02:58.1]} 6. Nd2 {[%clk 0:02:55.2]} 6... Qc7 {[%clk 0:02:56.5]}
7. Ngf3 {[%clk 0:02:54.5]} 7... Nbd7 {[%clk 0:02:55.4]} 8. Bd3 {[%clk
0:02:53.1]} 8... e5 {[%clk 0:02:51.9]} 9. dxe5 {[%clk 0:02:54]} 9... Nxe5 {[%clk
0:02:51.7]} 10. Nxe5 {[%clk 0:02:53.9]} 10... Bxe5 {[%clk 0:02:51.8]} 11. Nf3
{[%clk 0:02:52.5]} 11... Bd6 {[%clk 0:02:51.3]} 12. O-O {[%clk 0:02:41.3]} 12...
O-O {[%clk 0:02:50.6]} 13. Qc2 {[%clk 0:02:38.4]} 13... Bg4 {[%clk 0:02:49.6]}
14. Nd4 {[%clk 0:02:32.7]} 14... Rfe8 {[%clk 0:02:46]} 15. Rae1 {[%clk
0:02:26.3]} 15... Rad8 {[%clk 0:02:39]} 16. a3 {[%clk 0:02:20.3]} 16... a6
{[%clk 0:02:36.8]} 17. Kh1 {[%clk 0:02:00.2]} 17... Ne4 {[%clk 0:02:16.2]} 18.
Bxd6 {[%clk 0:01:35.8]} 18... Qxd6 {[%clk 0:02:14.9]} 19. f3 {[%clk 0:01:14.4]}
19... Nf6 {[%clk 0:00:57.6]} 20. fxg4 {[%clk 0:01:08.7]} 20... Nxg4 {[%clk
0:00:57.5]} 21. Nf3 {[%clk 0:01:09]} 21... Nxe3 {[%clk 0:00:50.5]} 22. Qe2
{[%clk 0:00:45.6]} 22... g6 {[%clk 0:00:40.7]} 23. Rg1 {[%clk 0:00:36.3]} 23...
Kg7 {[%clk 0:00:30.2]} 24. Qf2 {[%clk 0:00:28.6]} 24... Ng4 {[%clk 0:00:18.5]}
25. Qd4+ {[%clk 0:00:27.8]} 1-0

[Event "Late-Titled-Tuesday-Blitz-March-05-2024"]
[Site "Chess.com"]
[Date "2024.03.05"]
[Round "3"]
[White "giovannibrandao7"]
[Black "guillembaches"]
[Result "0-1"]
[WhiteElo "2227"]
[BlackElo "2535"]
[TimeControl "180+1"]
[EndTime "14:27:22 PST"]
[Termination "guillembaches won by checkmate"]

1. e4 {[%clk 0:03:00.9]} 1... c5 {[%clk 0:03:00.2]} 2. Nf3 {[%clk 0:03:01.5]}
2... d6 {[%clk 0:03:00.6]} 3. d4 {[%clk 0:03:01.6]} 3... cxd4 {[%clk 0:03:01.5]}
4. Nxd4 {[%clk 0:03:02.5]} 4... Nf6 {[%clk 0:03:02.1]} 5. Nc3 {[%clk 0:03:02.9]}
5... Nc6 {[%clk 0:03:02.7]} 6. Be3 {[%clk 0:03:01.7]} 6... Ng4 {[%clk
0:03:01.6]} 7. Bc1 {[%clk 0:02:52.8]} 7... Qb6 {[%clk 0:02:59.1]} 8. Bb5 {[%clk
0:02:32.4]} 8... Bd7 {[%clk 0:02:54.9]} 9. Bxc6 {[%clk 0:02:31]} 9... bxc6
{[%clk 0:02:54.4]} 10. O-O {[%clk 0:02:26.2]} 10... e5 {[%clk 0:02:50.9]} 11.
Nde2 {[%clk 0:02:12.2]} 11... Be7 {[%clk 0:02:46.2]} 12. h3 {[%clk 0:02:11.5]}
12... Nf6 {[%clk 0:02:45.9]} 13. Rb1 {[%clk 0:02:11.2]} 13... O-O {[%clk
0:02:40.7]} 14. Be3 {[%clk 0:02:11.2]} 14... Qc7 {[%clk 0:02:36.9]} 15. f4
{[%clk 0:01:55.6]} 15... Be6 {[%clk 0:02:36.2]} 16. fxe5 {[%clk 0:01:42.7]}
16... dxe5 {[%clk 0:02:36]} 17. Ng3 {[%clk 0:01:40.5]} 17... Nd7 {[%clk
0:02:28.7]} 18. Qf3 {[%clk 0:01:33.9]} 18... Bc5 {[%clk 0:02:23.6]} 19. Bxc5
{[%clk 0:01:23]} 19... Nxc5 {[%clk 0:02:23.6]} 20. Nf5 {[%clk 0:01:23.9]} 20...
Bxf5 {[%clk 0:02:20.2]} 21. Qxf5 {[%clk 0:01:20.3]} 21... Ne6 {[%clk 0:02:12.7]}
22. Qf2 {[%clk 0:01:06.4]} 22... Rad8 {[%clk 0:02:08.9]} 23. b3 {[%clk
0:00:54.8]} 23... Rd6 {[%clk 0:01:59.7]} 24. Rbd1 {[%clk 0:00:50.4]} 24... Nd4
{[%clk 0:01:53.4]} 25. Na4 {[%clk 0:00:40.2]} 25... Rf6 {[%clk 0:01:47]} 26. Qd2
{[%clk 0:00:32.6]} 26... Rg6 {[%clk 0:01:39.2]} 27. c3 {[%clk 0:00:31]} 27...
Ne6 {[%clk 0:01:39.3]} 28. Kh1 {[%clk 0:00:22.5]} 28... Nf4 {[%clk 0:01:34.4]}
29. Rf2 {[%clk 0:00:21.1]} 29... Qe7 {[%clk 0:01:25.8]} 30. Qe3 {[%clk
0:00:19.4]} 30... Qh4 {[%clk 0:01:20.9]} 31. Nc5 {[%clk 0:00:15.5]} 31... Rg3
{[%clk 0:01:15.9]} 32. Qe1 {[%clk 0:00:06]} 32... Nxh3 {[%clk 0:01:06.8]} 33.
gxh3 {[%clk 0:00:05.6]} 33... Rxh3+ {[%clk 0:01:07]} 34. Kg1 {[%clk 0:00:04.6]}
34... Rh1+ {[%clk 0:01:03.9]} 35. Kg2 {[%clk 0:00:02.7]} 35... Qh3# {[%clk
0:01:04.4]} 0-1

[Event "Late-Titled-Tuesday-Blitz-March-05-2024"]
[Site "Chess.com"]
[Date "2024.03.05"]
[Round "3"]
[White "AlexeiShirov"]
[Black "fandebobbyfischer"]
[Result "1-0"]
[WhiteElo "2871"]
[BlackElo "2664"]
[TimeControl "180+1"]
[EndTime "14:27:27 PST"]
[Termination "AlexeiShirov won on time"]

1. e4 {[%clk 0:03:00.9]} 1... d5 {[%clk 0:03:00]} 2. exd5 {[%clk 0:03:00]} 2...
Qxd5 {[%clk 0:03:00.9]} 3. Nc3 {[%clk 0:02:59.7]} 3... Qe5+ {[%clk 0:03:01]} 4.
Be2 {[%clk 0:02:58.4]} 4... Bg4 {[%clk 0:03:00.6]} 5. d4 {[%clk 0:02:56.7]} 5...
Bxe2 {[%clk 0:03:00.9]} 6. Ngxe2 {[%clk 0:02:55.6]} 6... Qa5 {[%clk 0:03:01.5]}
7. O-O {[%clk 0:02:48]} 7... Nf6 {[%clk 0:03:00.8]} 8. b4 {[%clk 0:02:45.4]}
8... Qxb4 {[%clk 0:02:49.7]} 9. Rb1 {[%clk 0:02:44.6]} 9... Qc4 {[%clk
0:02:15.7]} 10. Rxb7 {[%clk 0:02:43]} 10... e6 {[%clk 0:00:37.2]} 11. Bf4 {[%clk
0:02:05.2]} 11... Bd6 {[%clk 0:00:26.9]} 12. Bxd6 {[%clk 0:02:02.9]} 12... cxd6
{[%clk 0:00:27.8]} 13. Nb5 {[%clk 0:02:02.6]} 13... O-O {[%clk 0:00:27]} 14. Nc7
{[%clk 0:01:56.6]} 14... Qc6 {[%clk 0:00:10.9]} 15. Qb1 {[%clk 0:01:54.7]} 15...
Na6 {[%clk 0:00:04]} 16. Nxa8 {[%clk 0:01:53]} 16... Rxa8 {[%clk 0:00:04.9]} 17.
Qb5 {[%clk 0:01:49.2]} 17... Qxb5 {[%clk 0:00:01.6]} 18. Rxb5 {[%clk 0:01:48.8]}
18... h6 {[%clk 0:00:02.5]} 19. Ra5 {[%clk 0:01:40.8]} 19... Nc7 {[%clk
0:00:02.3]} 20. Rb1 {[%clk 0:01:41.3]} 20... Ncd5 {[%clk 0:00:02.4]} 21. c4
{[%clk 0:01:40.5]} 21... Ne7 {[%clk 0:00:02]} 22. Ra6 {[%clk 0:01:32.3]} 22...
Nf5 {[%clk 0:00:01.8]} 23. h3 {[%clk 0:01:16.3]} 23... Rc8 {[%clk 0:00:01.7]}
24. Rb4 {[%clk 0:01:15.6]} 24... Rc7 {[%clk 0:00:02.3]} 25. g4 {[%clk
0:01:14.4]} 25... Nh4 {[%clk 0:00:02.3]} 26. Rxd6 {[%clk 0:01:13.9]} 26... Ne4
{[%clk 0:00:02.1]} 27. Rd8+ {[%clk 0:01:12.3]} 27... Kh7 {[%clk 0:00:02.1]} 28.
Nf4 {[%clk 0:01:09.7]} 28... Nd2 {[%clk 0:00:01.6]} 29. c5 {[%clk 0:01:06.8]}
29... Ndf3+ {[%clk 0:00:01.4]} 30. Kf1 {[%clk 0:01:05.3]} 30... e5 {[%clk
0:00:02.2]} 31. Nd5 {[%clk 0:01:02.2]} 31... Rc6 {[%clk 0:00:01.2]} 32. Rbb8
{[%clk 0:00:59]} 32... exd4 {[%clk 0:00:01]} 33. Rh8+ {[%clk 0:00:55.6]} 1-0

[Event "Late-Titled-Tuesday-Blitz-March-05-2024"]
[Site "Chess.com"]
[Date "2024.03.05"]
[Round "3"]
[White "Szparu"]
[Black "NCchamp"]
[Result "1-0"]
[WhiteElo "2797"]
[BlackElo "2340"]
[TimeControl "180+1"]
[EndTime "14:27:29 PST"]
[Termination "Szparu won on time"]

1. e4 {[%clk 0:03:00.9]} 1... e5 {[%clk 0:02:58.1]} 2. f4 {[%clk 0:02:58.7]}
2... d5 {[%clk 0:02:56]} 3. exd5 {[%clk 0:02:58.3]} 3... exf4 {[%clk 0:02:56.2]}
4. Nf3 {[%clk 0:02:55.4]} 4... Nf6 {[%clk 0:02:53.1]} 5. c4 {[%clk 0:02:52.3]}
5... c6 {[%clk 0:02:51.8]} 6. d4 {[%clk 0:02:51.9]} 6... cxd5 {[%clk 0:02:51.1]}
7. Nc3 {[%clk 0:02:51]} 7... Bd6 {[%clk 0:02:43.9]} 8. Be2 {[%clk 0:02:47.1]}
8... O-O {[%clk 0:02:38.2]} 9. O-O {[%clk 0:02:43.4]} 9... Bg4 {[%clk 0:02:37]}
10. h3 {[%clk 0:02:36.4]} 10... Bh5 {[%clk 0:02:36.4]} 11. c5 {[%clk 0:02:34.4]}
11... Bc7 {[%clk 0:02:26.6]} 12. Ne5 {[%clk 0:02:34.4]} 12... Bxe2 {[%clk
0:02:23.3]} 13. Nxe2 {[%clk 0:02:29.9]} 13... Bxe5 {[%clk 0:02:09.7]} 14. dxe5
{[%clk 0:02:29.5]} 14... Ne4 {[%clk 0:02:09.7]} 15. Nxf4 {[%clk 0:02:25.9]}
15... Nxc5 {[%clk 0:02:04.9]} 16. Nxd5 {[%clk 0:02:23.5]} 16... Nc6 {[%clk
0:01:56.7]} 17. Bf4 {[%clk 0:01:58.7]} 17... Ne6 {[%clk 0:01:48.3]} 18. Bg3
{[%clk 0:01:53.6]} 18... Qg5 {[%clk 0:01:45.9]} 19. Qe1 {[%clk 0:01:51.7]} 19...
Qh5 {[%clk 0:00:53.9]} 20. Qe4 {[%clk 0:01:31.6]} 20... Ned4 {[%clk 0:00:46.2]}
21. Rf2 {[%clk 0:01:26.2]} 21... Rae8 {[%clk 0:00:34.6]} 22. Raf1 {[%clk
0:01:25.6]} 22... f5 {[%clk 0:00:26.3]} 23. Qd3 {[%clk 0:01:15.3]} 23... Ne6
{[%clk 0:00:18.6]} 24. Rxf5 {[%clk 0:01:13.5]} 24... Rxf5 {[%clk 0:00:15.7]} 25.
Rxf5 {[%clk 0:01:14]} 25... Qg6 {[%clk 0:00:14]} 26. Rf3 {[%clk 0:01:05.8]}
26... Ng5 {[%clk 0:00:09.9]} 27. Re3 {[%clk 0:01:00.3]} 27... Qxd3 {[%clk
0:00:07]} 28. Rxd3 {[%clk 0:01:00.9]} 28... Ne6 {[%clk 0:00:04.7]} 29. Rb3
{[%clk 0:00:57.3]} 29... b6 {[%clk 0:00:04.3]} 30. Rc3 {[%clk 0:00:57.5]} 30...
Ncd4 {[%clk 0:00:03.2]} 31. Kf1 {[%clk 0:00:54.5]} 31... Nf5 {[%clk 0:00:03]}
32. Bf2 {[%clk 0:00:52.2]} 32... Rf8 {[%clk 0:00:02]} 33. Ke1 {[%clk 0:00:51]}
33... Nfd4 {[%clk 0:00:01.3]} 34. Rc4 {[%clk 0:00:48.2]} 1-0